fUST/lending_fUST_20240304
["ID","MTS","AMOUNT","RATE_DAILY","PERIOD"]
[316458419,1709487966361,23821.2674736,0.00018534,2]
[316458423,1709488045132,-535.7623023,0.00018897,2]
[316458424,1709488045153,-724.4057677,0.00018898,2]
[316458430,1709488155080,-2416.79022259,0.00018898,2]
[316458431,1709488155100,-172.615264,0.000189,2]
[316458432,1709488155120,-150.0,0.000189,2]
[316458433,1709488155139,-300.0,0.00019084,2]
[316458434,1709488155158,-18342.1472245,0.00019085,2]
[316458435,1709488155178,-249.5002275,0.00020446,2]
[316458436,1709488155198,-32966.14019133,0.00020546,2]
[316458437,1709488159141,-2384.17322,0.00020546,2]
[316458438,1709488160127,-21581.07838028,0.00020546,2]
[316458439,1709488160147,-500.0,0.00020547,2]
[316458440,1709488160168,-500.0,0.00020547,2]
[316458441,1709488160284,-500.0,0.00020547,2]
[316458442,1709488160306,-255.99999998,0.00020547,2]
[316458443,1709488160328,-500.0,0.00020547,2]
[316458444,1709488160348,-500.0,0.00020547,2]
[316458445,1709488160368,-500.0,0.00020547,2]
[316458446,1709488160388,-500.0,0.00020547,2]
[316458447,1709488160409,-500.0,0.00020547,2]
[316458448,1709488160430,-418.84782709,0.00020547,2]
[316458449,1709488160449,-523.20782965,0.00020547,2]
[316458450,1709488160470,-500.0,0.00020547,2]
[316458451,1709488160491,-500.0,0.00020547,2]
[316458452,1709488160512,-500.0,0.00020547,2]
[316458453,1709488160533,-500.0,0.00020547,2]
[316458454,1709488160553,-500.0,0.00020547,2]
[316458455,1709488160575,-500.0,0.00020547,2]
[316458456,1709488160596,-500.0,0.00020547,2]
[316458457,1709488160616,-500.0,0.00020547,2]
[316458458,1709488160637,-500.87770693,0.00020547,2]
[316458459,1709488160657,-500.0,0.00020547,2]
[316458460,1709488160678,-500.0,0.00020547,2]
[316458461,1709488160699,-347.10135933,0.00020547,2]
[316458462,1709488160721,-500.0,0.00020547,2]
[316458463,1709488160742,-500.58038892,0.00020547,2]
[316458464,1709488160763,-500.0,0.00020547,2]
[316458465,1709488160786,-500.0,0.00020547,2]
[316458466,1709488160806,-500.0,0.00020547,2]
[316458467,1709488160828,-500.0,0.00020547,2]
[316458468,1709488160848,-500.0,0.00020547,2]
[316458469,1709488160871,-500.0,0.00020547,2]
[316458470,1709488160892,-500.0,0.00020547,2]
[316458471,1709488160912,-500.0,0.00020547,2]
[316458472,1709488160933,-500.0,0.00020547,2]
[316458473,1709488160953,-500.0,0.00020547,2]
[316458474,1709488160974,-500.0,0.00020547,2]
[316458475,1709488160993,-500.0,0.00020547,2]
[316458476,1709488161015,-500.0,0.00020547,2]
[316458477,1709488161036,-500.0,0.00020547,2]
[316458478,1709488161056,-500.0,0.00020547,2]
[316458479,1709488161078,-649.04,0.00020547,2]
[316458480,1709488161099,-500.0,0.00020547,2]
[316458481,1709488161119,-500.0,0.00020547,2]
[316458482,1709488161141,-500.0,0.00020547,2]
[316458483,1709488161162,-208.79,0.00020547,2]
[316458484,1709488161185,-932.28,0.00020547,2]
[316458485,1709488161206,-500.0,0.00020547,2]
[316458486,1709488161230,-500.0,0.00020547,2]
[316458487,1709488161251,-154.40569906,0.00020547,2]
[316458488,1709488161272,-520.69,0.00020547,2]
[316458489,1709488161293,-500.0,0.00020547,2]
[316458490,1709488161314,-500.0,0.00020547,2]
[316458491,1709488161335,-519.88,0.00020547,2]
[316458492,1709488161356,-519.88,0.00020547,2]
[316458493,1709488161378,-500.0,0.00020547,2]
[316458494,1709488161398,-500.0,0.00020547,2]
[316458495,1709488161419,-500.0,0.00020547,2]
[316458496,1709488161441,-179.85,0.00020547,2]
[316458497,1709488161463,-500.0,0.00020547,2]
[316458498,1709488161486,-500.0,0.00020547,2]
[316458499,1709488161507,-317.96,0.00020547,2]
[316458500,1709488161529,-502.11844382,0.00020547,2]
[316458501,1709488161551,-500.0,0.00020547,2]
[316458502,1709488161573,-500.0,0.00020547,2]
[316458503,1709488161594,-500.49089249,0.00020547,2]
[316458504,1709488161615,-500.0,0.00020547,2]
[316458505,1709488161637,-500.0,0.00020547,2]
[316458506,1709488161659,-500.0,0.00020547,2]
[316458507,1709488161682,-500.0,0.00020547,2]
[316458508,1709488161703,-500.0,0.00020547,2]
[316458509,1709488161726,-348.40920246,0.00020547,2]
[316458510,1709488165125,-151.59079754,0.00020547,2]
[316458511,1709488165146,-496.07570246,0.00020547,2]
[316458707,1709488234576,-3.92429754,0.00020547,2]
[316458708,1709488234585,-190.99,0.00020547,2]
[316458709,1709488234594,-256.85019774,0.00020547,2]
[316458710,1709488234603,-893.44,0.00020547,2]
[316458711,1709488234612,-893.44,0.00020547,2]
[316458712,1709488234622,-500.0,0.00021672,2]
[316458713,1709488234631,-500.0,0.00021672,2]
[316458715,1709488234640,-500.0,0.00021672,2]
[316458717,1709488234650,-500.0,0.00021672,2]
[316458720,1709488234659,-166.666666,0.00022367,2]
[316458723,1709488234669,-535.7623023,0.00023008,2]
[316458726,1709488234678,-500.0,0.00023009,2]
[316458729,1709488234687,-152.98979453,0.00023009,2]
[316458730,1709488234696,-500.0,0.00023009,2]
[316458732,1709488234707,-171.87963591,0.00023009,2]
[316458734,1709488234719,-348.00036409,0.00023009,2]
[316458736,1709488234727,-500.0,0.00023009,2]
[316458738,1709488234737,-500.0,0.00023009,2]
[316458740,1709488234746,-5614.67206133,0.0002301,5]
[316458742,1709488234755,-500.0,0.00023728,2]
[316458744,1709488234764,-500.0,0.00023728,2]
[316458746,1709488234773,-893.44,0.00023728,2]
[316458749,1709488234786,-647.0,0.00023757,2]
[316458751,1709488234798,-500.0,0.00023757,2]
[316458753,1709488234810,-500.0,0.00023757,2]
[316458755,1709488234821,-500.0,0.00023757,2]
[316458758,1709488234833,-1000.0,0.00023773,2]
[316458760,1709488234843,-1000.0,0.00023783,2]
[316458762,1709488234854,-1000.0,0.00023814,2]
[316458764,1709488234865,-1000.0,0.00023839,2]
[316458766,1709488234875,-1000.0,0.00023846,2]
[316458768,1709488234885,-1000.0,0.00023854,2]
[316458770,1709488234896,-1000.0,0.00023865,2]
[316458772,1709488234906,-1000.0,0.00023903,2]
[316458775,1709488234918,-1000.0,0.00023949,2]
[316458777,1709488234929,-1000.0,0.00023955,2]
[316458779,1709488234941,-8236.90636638,0.00023974,2]
[316458781,1709488234952,-500.0,0.00023996,2]
[316458783,1709488234963,-498.02445076,0.00023997,2]
[316458785,1709488234974,-218.42542059,0.00023997,2]
[316458787,1709488234984,-500.0,0.00023997,2]
[316458789,1709488234996,-327.76146586,0.00023997,2]
[316458792,1709488235008,-500.0,0.00023997,2]
[316458794,1709488235018,-455.02170274,0.00023997,2]
[316458796,1709488235028,-500.0,0.00023997,2]
[316458798,1709488235040,-155.00310006,0.00023998,2]
[316458800,1709488235051,-2595.08936365,0.00023998,2]
[316458802,1709488235062,-1093.501404,0.00023998,2]
[316458804,1709488235071,-500.0,0.00023998,2]
[316458806,1709488235081,-193.26,0.00023998,2]
[316458809,1709488235091,-505.70747015,0.00023998,2]
[316458811,1709488235102,-500.0,0.00023998,2]
[316458813,1709488235113,-500.0,0.00023998,2]
[316458815,1709488235123,-519.88,0.00023998,2]
[316458817,1709488235134,-519.88,0.00023998,2]
[316458819,1709488235144,-500.0,0.00023998,2]
[316458822,1709488235156,-500.0,0.00023998,2]
[316458824,1709488235167,-500.0,0.00023998,2]
[316458826,1709488235177,-500.0,0.00023998,2]
[316458828,1709488235186,-500.0,0.00023998,2]
[316458830,1709488235197,-500.0,0.00023998,2]
[316458832,1709488235208,-500.0,0.00023998,2]
[316458834,1709488235220,-500.0,0.00023998,2]
[316458836,1709488235231,-500.0,0.00023998,2]
[316458839,1709488235242,-648.62992233,0.00023998,2]
[316458841,1709488235253,-1508.1025562,0.00023998,2]
[316458843,1709488235263,-893.44,0.00023998,2]
[316458845,1709488235273,-893.44,0.00023998,2]
[316458847,1709488235283,-500.0,0.00023999,2]
[316458849,1709488235293,-500.0,0.00023999,2]
[316458851,1709488235303,-500.0,0.00023999,2]
[316458853,1709488235314,-500.0,0.00023999,2]
[316458856,1709488235326,-500.0,0.00023999,2]
[316458858,1709488235336,-500.0,0.00023999,2]
[316458860,1709488235347,-250.12,0.00023999,2]
[316458862,1709488235356,-500.0,0.00023999,2]
[316458864,1709488235367,-500.0,0.00023999,2]
[316458866,1709488235378,-500.0,0.00023999,2]
[316458868,1709488235388,-500.0,0.00023999,2]
[316458870,1709488235398,-500.0,0.00023999,2]
[316458873,1709488235408,-500.0,0.00023999,2]
[316458875,1709488235421,-500.0,0.00023999,2]
[316458877,1709488235431,-519.88,0.00023999,2]
[316458879,1709488235440,-519.88,0.00023999,2]
[316458881,1709488235451,-519.88,0.00023999,2]
[316458883,1709488235461,-500.0,0.00023999,2]
[316458885,1709488235471,-519.88,0.00023999,2]
[316458887,1709488235482,-500.0,0.00023999,2]
[316458889,1709488235493,-500.0,0.00023999,2]
[316458892,1709488235504,-406.7713582,0.00023999,2]
[316459204,1709488238457,-535.7623023,0.00021671,2]
[316459206,1709488238467,-113.1086418,0.00023999,2]
[316459208,1709488238477,-435.6852265,0.00023999,2]
[316459214,1709488238519,-64.3147735,0.00023999,2]
[316459216,1709488238530,-519.88,0.00023999,2]
[316459218,1709488238539,-224.66686338,0.00023999,2]
[316459220,1709488238550,-519.88,0.00023999,2]
[316459222,1709488238561,-519.88,0.00023999,2]
[316459224,1709488238571,-519.88,0.00023999,2]
[316459227,1709488238582,-519.88,0.00023999,2]
[316459229,1709488238593,-519.88,0.00023999,2]
[316459231,1709488238603,-519.88,0.00023999,2]
[316459233,1709488238613,-519.88,0.00023999,2]
[316459235,1709488238623,-519.88,0.00023999,2]
[316459237,1709488238634,-519.88,0.00023999,2]
[316459239,1709488238644,-519.88,0.00023999,2]
[316459241,1709488238654,-519.88,0.00023999,2]
[316459243,1709488238663,-519.88,0.00023999,2]
[316459246,1709488238673,-520.0,0.00023999,2]
[316459248,1709488238682,-500.0,0.00023999,2]
[316459250,1709488238693,-500.0,0.00023999,2]
[316459252,1709488238703,-500.5,0.00023999,2]
[316459254,1709488238716,-500.0,0.00023999,2]
[316459256,1709488238725,-500.0,0.00023999,2]
[316459258,1709488238735,-500.0,0.00023999,2]
[316459260,1709488238744,-298.76,0.00023999,2]
[316459262,1709488238756,-500.0,0.00023999,2]
[316459264,1709488238765,-500.0,0.00023999,2]
[316459266,1709488238775,-500.0,0.00023999,2]
[316459268,1709488238784,-500.0,0.00023999,2]
[316459270,1709488238796,-314.04,0.00023999,2]
[316459272,1709488238807,-500.0,0.00023999,2]
[316459275,1709488238817,-500.0,0.00023999,2]
[316459277,1709488238827,-500.0,0.00023999,2]
[316459279,1709488238837,-500.0,0.00023999,2]
[316459281,1709488238847,-500.0,0.00023999,2]
[316459283,1709488238856,-500.0,0.00023999,2]
[316459285,1709488238866,-500.0,0.00023999,2]
[316459287,1709488238876,-556.50999998,0.00023999,2]
[316459289,1709488238887,-893.44,0.00023999,2]
[316459291,1709488238897,-893.44,0.00023999,2]
[316459305,1709488239014,-893.44,0.00023999,2]
[316459307,1709488239025,-893.44,0.00023999,2]
[316459309,1709488239034,-893.44,0.00023999,2]
[316459311,1709488239043,-893.44,0.00023999,2]
[316459313,1709488239053,-893.44,0.00023999,2]
[316459315,1709488239062,-893.44,0.00023999,2]
[316459317,1709488239072,-893.44,0.00023999,2]
[316459319,1709488239081,-893.44,0.00023999,2]
[316459321,1709488239091,-893.44,0.00023999,2]
[316459323,1709488239100,-893.44,0.00023999,2]
[316459325,1709488239109,-893.44,0.00023999,2]
[316459327,1709488239118,-893.44,0.00023999,2]
[316459329,1709488239128,-893.44,0.00023999,2]
[316459331,1709488239137,-893.44,0.00023999,2]
[316459333,1709488239146,-893.44,0.00023999,2]
[316459335,1709488239155,-893.44,0.00023999,2]
[316459337,1709488239164,-893.46865531,0.00023999,2]
[316459339,1709488239173,-1380128.89844417,0.00024,5]
[316459342,1709488239185,-2437.78114445,0.00024,5]
[316459352,1709488239270,-8676.37021695,0.00024,5]
[316459354,1709488239281,-7988.57504992,0.00024,5]
[316459356,1709488239294,-16330.46181547,0.00024,5]
[316459358,1709488239305,-4144.24079186,0.00024,5]
[316459573,1709488241438,-500.0,0.00020547,2]
[316459575,1709488241447,-1169.03118031,0.00024,5]
[316459582,1709488241497,-339.64638281,0.00024,5]
[316460052,1709488246599,-345.58677069,0.00020547,2]
[316460055,1709488246610,-154.41322931,0.00020547,2]
[316460057,1709488246619,-500.49382646,0.00024,5]
[316460061,1709488246655,-986.736,0.00024,5]
[316461032,1709489251102,-1004.03111629,0.00020353,2]
[316461045,1709489347087,-535.7623023,0.00020352,2]
[316461046,1709489347109,-14928.07457808,0.00020353,2]
[316461047,1709489347128,-26720.3131945,0.00020354,2]
[316461048,1709489355130,-1531.2880084,0.00020354,2]
[316461049,1709489355150,-290.93795826,0.00020547,2]
[316461050,1709489355171,-154.64924509,0.00020547,2]
[316461051,1709489355191,-226.46,0.00020547,2]
[316461052,1709489355211,-172.615264,0.00020958,2]
[316461053,1709489355231,-165.840318,0.00021497,2]
[316461054,1709489355250,-1004.0311163,0.00021578,2]
[316461055,1709489355271,-500.97917017,0.00021588,2]
[316461056,1709489355291,-500.0,0.00021588,2]
[316461057,1709489355310,-500.0,0.00021588,2]
[316461058,1709489355331,-500.0,0.00021588,2]
[316461059,1709489355351,-500.0,0.00021588,2]
[316461060,1709489355373,-636.31,0.00021588,2]
[316461061,1709489355394,-755.66,0.00021588,2]
[316461062,1709489355415,-500.0,0.00021588,2]
[316461063,1709489355435,-500.0,0.00021588,2]
[316461064,1709489355454,-500.0,0.00021588,2]
[316461065,1709489355474,-501.91045605,0.00021588,2]
[316461066,1709489355493,-500.0,0.00021588,2]
[316461067,1709489355518,-500.0,0.00021588,2]
[316461068,1709489355539,-500.0,0.00021588,2]
[316461069,1709489355558,-169.50397513,0.00021588,2]
[316461194,1709489434960,-500.0,0.00020547,2]
[316461196,1709489434970,-3929.36297917,0.00021587,2]
[316461198,1709489434979,-117.44106584,0.00021588,2]
[316461200,1709489434989,-500.0,0.00021588,2]
[316461202,1709489434998,-500.0,0.00021588,2]
[316461204,1709489435008,-291.79205979,0.00021588,2]
[316461206,1709489435017,-500.0,0.00021588,2]
[316461208,1709489435027,-500.0,0.00021588,2]
[316461210,1709489435036,-500.0,0.00021588,2]
[316461212,1709489435045,-500.0,0.00021588,2]
[316461214,1709489435058,-500.0,0.00021588,2]
[316461216,1709489435067,-500.0,0.00021588,2]
[316461218,1709489435076,-500.0,0.00021588,2]
[316461220,1709489435086,-500.0,0.00021588,2]
[316461222,1709489435096,-500.0,0.00021588,2]
[316461224,1709489435104,-500.0,0.00021588,2]
[316461226,1709489435113,-535.7623023,0.00022561,2]
[316461228,1709489435122,-431.58626179,0.00022562,2]
[316461230,1709489435132,-154.01572054,0.00022562,2]
[316461232,1709489435141,-185.41976452,0.00022562,2]
[316461233,1709489435150,-2393.09116375,0.00023009,5]
[316461235,1709489435159,-220.0,0.00023009,2]
[316461237,1709489435167,-1000.0,0.00023559,5]
[316461239,1709489435176,-1000.0,0.00023559,5]
[316461241,1709489435186,-978.73483866,0.000239,2]
[316461243,1709489435195,-161.95066675,0.00023998,2]
[316461245,1709489435204,-485.71583325,0.00023998,2]
[316461247,1709489435213,-615.54947847,0.00023998,2]
[316461249,1709489435222,-500.0,0.00023998,2]
[316461251,1709489435231,-500.0,0.00023998,2]
[316461253,1709489435240,-500.0,0.00023998,2]
[316461255,1709489435249,-636.31,0.00023998,2]
[316461257,1709489435259,-755.66,0.00023998,2]
[316461259,1709489435268,-500.0,0.00023998,2]
[316461261,1709489435277,-500.0,0.00023998,2]
[316461263,1709489435286,-500.0,0.00023998,2]
[316461265,1709489435295,-500.0,0.00023998,2]
[316461267,1709489435304,-1135.83836243,0.00023998,2]
[316461269,1709489435314,-500.0,0.00023998,2]
[316461271,1709489435324,-500.0,0.00023998,2]
[316461273,1709489435334,-500.0,0.00023999,2]
[316461275,1709489435343,-500.0,0.00023999,2]
[316461278,1709489435353,-500.0,0.00023999,2]
[316461280,1709489435362,-500.0,0.00023999,2]
[316461281,1709489435371,-500.0,0.00023999,2]
[316461283,1709489435381,-500.0,0.00023999,2]
[316461286,1709489435391,-500.0,0.00023999,2]
[316461288,1709489435400,-500.0,0.00023999,2]
[316461289,1709489435409,-500.0,0.00023999,2]
[316461291,1709489435418,-500.0,0.00023999,2]
[316461293,1709489435428,-500.0,0.00023999,2]
[316461295,1709489435437,-500.0,0.00023999,2]
[316461297,1709489435446,-500.0,0.00023999,2]
[316461299,1709489435456,-500.0,0.00023999,2]
[316461301,1709489435465,-278.44,0.00023999,2]
[316461303,1709489435474,-636.31,0.00023999,2]
[316461305,1709489435484,-636.31,0.00023999,2]
[316461307,1709489435494,-636.31,0.00023999,2]
[316461309,1709489435504,-636.31,0.00023999,2]
[316461311,1709489435514,-636.31,0.00023999,2]
[316461313,1709489435524,-636.31,0.00023999,2]
[316461316,1709489435533,-636.31,0.00023999,2]
[316461317,1709489435543,-636.31,0.00023999,2]
[316461320,1709489435552,-636.31,0.00023999,2]
[316461321,1709489435563,-636.31,0.00023999,2]
[316461323,1709489435573,-636.31,0.00023999,2]
[316461326,1709489435583,-636.31,0.00023999,2]
[316461328,1709489435592,-636.31,0.00023999,2]
[316461330,1709489435601,-636.31,0.00023999,2]
[316461332,1709489435611,-636.31,0.00023999,2]
[316461334,1709489435620,-755.66,0.00023999,2]
[316461336,1709489435629,-636.31,0.00023999,2]
[316461337,1709489435638,-755.66,0.00023999,2]
[316461339,1709489435647,-636.31,0.00023999,2]
[316461341,1709489435655,-755.66,0.00023999,2]
[316461343,1709489435665,-636.31,0.00023999,2]
[316461345,1709489435674,-755.66,0.00023999,2]
[316461347,1709489435684,-636.31,0.00023999,2]
[316461349,1709489435694,-755.66,0.00023999,2]
[316461351,1709489435703,-636.31,0.00023999,2]
[316461353,1709489435713,-755.66,0.00023999,2]
[316461355,1709489435723,-636.31,0.00023999,2]
[316461357,1709489435732,-755.66,0.00023999,2]
[316461359,1709489435742,-636.46007868,0.00023999,2]
[316461361,1709489435751,-755.66,0.00023999,2]
[316461363,1709489435760,-755.66,0.00023999,2]
[316461365,1709489435769,-755.66,0.00023999,2]
[316461367,1709489435779,-755.66,0.00023999,2]
[316461369,1709489435788,-755.66,0.00023999,2]
[316461371,1709489435797,-755.66,0.00023999,2]
[316461373,1709489435805,-755.66,0.00023999,2]
[316461375,1709489435815,-755.66,0.00023999,2]
[316461377,1709489435824,-755.66,0.00023999,2]
[316461379,1709489435834,-755.66,0.00023999,2]
[316461381,1709489435844,-755.66,0.00023999,2]
[316461383,1709489435853,-755.66,0.00023999,2]
[316461385,1709489435863,-755.66,0.00023999,2]
[316461387,1709489435872,-755.66,0.00023999,2]
[316461389,1709489435882,-755.82604022,0.00023999,2]
[316461391,1709489435892,-500.0,0.00023999,2]
[316461393,1709489435902,-500.0,0.00023999,2]
[316461395,1709489435911,-500.0,0.00023999,2]
[316461397,1709489435920,-288.98163688,0.00023999,2]
[316461399,1709489435929,-500.0,0.00023999,2]
[316461401,1709489435938,-500.0,0.00023999,2]
[316461402,1709489435948,-500.0,0.00023999,2]
[316461404,1709489435957,-500.0,0.00023999,2]
[316461406,1709489435967,-500.5,0.00023999,2]
[316461408,1709489435976,-500.0,0.00023999,2]
[316461410,1709489435986,-500.0,0.00023999,2]
[316461412,1709489435995,-500.0,0.00023999,2]
[316461414,1709489436005,-459.8,0.00023999,2]
[316461416,1709489436014,-500.0,0.00023999,2]
[316461418,1709489436024,-500.0,0.00023999,2]
[316461420,1709489436034,-500.0,0.00023999,2]
[316461422,1709489436050,-500.0,0.00023999,2]
[316461424,1709489436059,-500.0,0.00023999,2]
[316461426,1709489436069,-500.0,0.00023999,2]
[316461428,1709489436078,-500.0,0.00023999,2]
[316461430,1709489436089,-516.3981304,0.00023999,2]
[316461432,1709489436098,-500.0,0.00023999,2]
[316461434,1709489436108,-314.04,0.00023999,2]
[316461436,1709489436118,-500.0,0.00023999,2]
[316461437,1709489436128,-500.0,0.00023999,2]
[316461439,1709489436137,-500.0,0.00023999,2]
[316461441,1709489436147,-500.0,0.00023999,2]
[316461443,1709489436156,-500.0,0.00023999,2]
[316461445,1709489436165,-500.0,0.00023999,2]
[316461447,1709489436175,-527333.05146214,0.00024,5]
[316461454,1709489436230,-17199.46080468,0.00024,5]
[316461455,1709489436245,-1139.88048057,0.00024,5]
[316461707,1709489438697,-500.0,0.00023999,2]
[316461709,1709489438707,-500.0,0.00023999,2]
[316461711,1709489438716,-500.0,0.00023999,2]
[316461713,1709489438726,-254.36999998,0.00023999,2]
[316461715,1709489438735,-60062.3398202,0.00024,5]
[316461717,1709489438747,-12210.37563679,0.00024,5]
[316461724,1709489438803,-12793.30653884,0.00024,5]
[316461726,1709489438818,-1414341.51873634,0.00024,5]
[316461729,1709489438830,-17073.79558915,0.00024,5]
[316461731,1709489438841,-1581.86363954,0.00024,5]
[316461733,1709489438853,-5492.40729505,0.00024,5]
[316461991,1709489441698,-94244.77632439,0.00024,5]
[316462199,1709489443708,-1426.67082168,0.00024,5]
[316464558,1709490442251,-535.7623023,0.00020542,2]
[316464559,1709490442271,-357.58670785,0.00020543,2]
[316464560,1709490442292,-500.0,0.00020547,2]
[316464561,1709490442311,-500.0,0.00020547,2]
[316464562,1709490442333,-500.0,0.00020547,2]
[316464563,1709490442354,-478.1902784,0.00020547,2]
[316464564,1709490442374,-448.44072145,0.00022573,2]
[316464573,1709490557175,1000.0,0.00024,49]
[316464574,1709490558208,1000.0,0.00024,49]
[316464575,1709490559199,1000.0,0.00024,49]
[316464576,1709490560251,1000.0,0.00024,49]
[316464577,1709490586430,10000.0,0.00021,21]
[316464615,1709490631870,-165.840318,0.00022396,2]
[316464616,1709490631881,-535.7623023,0.0002257,2]
[316464617,1709490631891,-3044.99464644,0.00022573,2]
[316464624,1709490631985,-839.30409344,0.00022573,2]
[316464884,1709490638122,1000.0,0.00024,49]
[316464943,1709490640953,-45.06423929,0.00022573,2]
[316464945,1709490640963,-385.04068853,0.00022574,2]
[316464947,1709490640974,-223.40877201,0.00022574,2]
[316464949,1709490640983,-437.78990611,0.00023011,2]
[316464951,1709490640993,-620.16228624,0.00023013,5]
[316464953,1709490641004,-323.53288608,0.00023998,2]
[316464955,1709490641014,-2124.97879065,0.00023998,2]
[316464957,1709490641025,-500.0,0.00023999,2]
[316464960,1709490641036,-500.0,0.00023999,2]
[316464962,1709490641046,-380.40135578,0.00023999,2]
[316464964,1709490641057,-500.56334309,0.00023999,2]
[316464966,1709490641067,-500.0,0.00023999,2]
[316464968,1709490641078,-500.0,0.00023999,2]
[316464970,1709490641089,-500.48570779,0.00023999,2]
[316464973,1709490641100,-500.0,0.00023999,2]
[316464975,1709490641110,-500.0,0.00023999,2]
[316464977,1709490641122,-500.98154073,0.00023999,2]
[316464979,1709490641132,-206.26258785,0.00023999,2]
[316464981,1709490641143,-500.0,0.00023999,2]
[316464983,1709490641154,-500.0,0.00023999,2]
[316464986,1709490641166,-500.0,0.00023999,2]
[316464988,1709490641177,-500.0,0.00023999,2]
[316464990,1709490641188,-503.50055741,0.00023999,2]
[316464992,1709490641197,-500.0,0.00023999,2]
[316464994,1709490641207,-500.0,0.00023999,2]
[316464996,1709490641217,-500.0,0.00023999,2]
[316464998,1709490641227,-500.0,0.00023999,2]
[316465000,1709490641238,-500.0,0.00023999,2]
[316465002,1709490641247,-500.0,0.00023999,2]
[316465004,1709490641257,-500.0,0.00023999,2]
[316465006,1709490641268,-500.0,0.00023999,2]
[316465008,1709490641278,-500.0,0.00023999,2]
[316465010,1709490641288,-500.0,0.00023999,2]
[316465012,1709490641299,-500.0,0.00023999,2]
[316465015,1709490641311,-500.0,0.00023999,2]
[316465017,1709490641321,-500.0,0.00023999,2]
[316465019,1709490641332,-500.0,0.00023999,2]
[316465021,1709490641342,-500.0,0.00023999,2]
[316465023,1709490641351,-500.0,0.00023999,2]
[316465025,1709490641362,-500.0,0.00023999,2]
[316465027,1709490641372,-500.0,0.00023999,2]
[316465029,1709490641381,-40190.12758375,0.00024,5]
[316465032,1709490641395,-62763.93168928,0.00024,5]
[316465034,1709490641409,-364404.75265616,0.00024,5]
[316465114,1709490642164,-3387.32988041,0.00024,5]
[316465117,1709490642177,-1414341.51873634,0.00024,5]
[316465225,1709490642886,-1078.07879426,0.00024,5]
[316465544,1709490645897,-535.7623023,0.00023999,2]
[316465546,1709490645906,-20716.59004639,0.00024,5]
[316465558,1709490645957,-627.82,0.00024,5]
[316465561,1709490645968,-2677.5,0.00024,5]
[316466113,1709491639158,-403.70686,0.00019499,2]
[316466117,1709491749106,-307.46739097,0.000189,2]
[316466118,1709491749126,-132.0554423,0.00019499,2]
[316466119,1709491749152,-38.1039817,0.000195,2]
[316466120,1709491754197,-195.29659333,0.000195,2]
[316466307,1709491833806,-84.92582262,0.000195,2]
[316466309,1709491833816,-3929.36297917,0.00021155,2]
[316466310,1709491833826,-3929.36297917,0.00021156,2]
[316466312,1709491833838,-166.666666,0.00021159,2]
[316466314,1709491833847,-2683.1414593,0.00021473,2]
[316466316,1709491833857,-500.0,0.00021527,2]
[316466318,1709491833866,-8912.197917,0.00021601,2]
[316466320,1709491833876,-2854.0,0.00021663,2]
[316466322,1709491833885,-249.307361,0.00021833,2]
[316466324,1709491833894,-2317.1882869,0.00022252,2]
[316466326,1709491833903,-166.509718,0.00022268,2]